bitfinex-derivatives/quotes_ETHF0:USTF0_20250125
["timestamp","ask_amount","ask_price","bid_price","bid_amount"]
[1737792675078,4.8343312,3298.1,3298.0,8.2e-07]
[1737792675079,7.194927,3298.1,3298.0,8.2e-07]
[1737792675378,7.194927,3298.1,3296.7,3.2078]
[1737792675379,0.48538,3296.8,3296.7,3.2078]
[1737792675566,0.48538,3296.8,3296.5,4.77009227]
[1737792675567,0.4854,3296.7,3296.6,1.0304]
[1737792676176,0.48541,3296.6,3296.5,4.77009227]
[1737792676379,1.00211,3296.6,3296.5,4.77009227]
[1737792676673,3.33390431,3296.6,3296.5,4.77009227]
[1737792677180,3.33390431,3296.6,3296.3,7.15968923]
[1737792677181,0.48544,3296.4,3296.3,0.00455082]
[1737792677485,3.69324,3296.4,3296.3,0.00455082]
[1737792678682,3.69324,3296.4,3296.3,2e-08]
[1737792679779,7.69580155,3296.4,3296.3,2e-08]
[1737792680475,8.64780155,3296.4,3296.3,2e-08]
[1737792682679,8.69663564,3296.4,3296.3,2e-08]
[1737792683382,8.69663519,3296.4,3296.3,2e-08]
[1737792684987,8.69663616,3296.4,3296.3,2e-08]
[1737792686384,8.64780155,3296.4,3296.3,2e-08]
[1737792696394,8.69663746,3296.4,3296.3,2e-08]
[1737792696588,8.74547374,3296.4,3296.3,2e-08]
[1737792698978,8.74547725,3296.4,3296.3,2e-08]
[1737792699182,8.98676822,3296.4,3296.3,2e-08]
[1737792702493,8.9867692,3296.4,3296.3,2e-08]
[1737792703701,9.37018356,3296.4,3296.3,2e-08]
[1737792704790,8.88474356,3296.4,3295.6,1.0261]
[1737792705000,0.48555,3295.7,3295.6,1.0261]
[1737792705499,4.34750835,3295.7,3295.6,1.0261]
[1737792709097,4.34750835,3295.7,3295.6,0.5112]
[1737792710904,0.48558,3295.5,3295.4,1.0348]
[1737792711105,3.76537431,3295.5,3295.4,1.0348]
[1737792711295,0.48559,3295.4,3295.3,0.00455082]
[1737792711602,3.69339,3295.4,3295.3,0.00455082]
[1737792712305,7.59589874,3295.4,3295.3,0.00455082]
[1737792714507,3.69339,3295.4,3295.3,0.00455082]
[1737792715108,3.69339,3295.4,3295.3,40.80455082]
[1737792715805,3.69339,3295.4,3295.3,0.00455082]
[1737792719108,4.64139,3295.4,3295.3,0.00455082]
[1737792721004,8.55411198,3295.4,3295.3,0.00455082]
[1737792721211,9.06311198,3295.4,3295.3,0.00455082]
[1737792721809,9.51875695,3295.4,3295.3,8.2e-07]
[1737792722105,10.00275695,3295.4,3295.3,8.2e-07]
[1737792722813,10.00275833,3295.4,3295.3,8.2e-07]
[1737792724421,10.00276011,3295.4,3295.3,8.2e-07]
[1737792726113,10.00276031,3295.4,3295.3,8.2e-07]
[1737792726314,10.41333664,3295.4,3295.3,8.2e-07]
[1737792727807,10.36448344,3295.4,3295.3,8.2e-07]
[1737792728014,10.41333688,3295.4,3295.3,8.2e-07]
[1737792729511,10.41333672,3295.4,3295.3,8.2e-07]
[1737792733521,10.00276039,3295.4,3295.3,8.2e-07]
[1737792734412,10.39976364,3295.4,3295.3,8.2e-07]
[1737792736318,10.35091036,3295.4,3295.3,8.2e-07]
[1737792736629,10.39976388,3295.4,3295.3,8.2e-07]
[1737792737123,10.35091036,3295.4,3295.3,8.2e-07]
[1737792737322,10.39976421,3295.4,3295.3,8.2e-07]
[1737792738420,10.39976566,3295.4,3295.3,8.2e-07]
[1737792739624,10.39976565,3295.4,3295.3,8.2e-07]
[1737792741528,10.35091036,3295.4,3295.3,8.2e-07]
[1737792741729,10.39976565,3295.4,3295.3,8.2e-07]
[1737792743419,10.39976531,3295.4,3295.3,8.2e-07]
[1737792745130,10.39976521,3295.4,3295.3,8.2e-07]
[1737792747630,9.91576521,3295.4,3295.3,8.2e-07]
[1737792748529,8.01290711,3295.4,3295.3,8.2e-07]
[1737792749029,8.95990711,3295.4,3295.3,8.2e-07]
[1737792750223,8.01290711,3295.4,3295.3,8.2e-07]
[1737792750619,3.21235082,3297.0,3295.3,5.01988866]
[1737792750820,0.48535,3297.1,3296.7,2.33179431]
[1737792751031,7.2082,3297.4,3296.7,2.33179431]
[1737792751336,0.48532,3297.3,3296.7,2.33179431]
[1737792751537,7.2082,3297.4,3296.7,2.33179431]
[1737792751736,0.48534,3297.2,3296.7,2.33179431]
[1737792753232,3.8603995,3297.3,3296.7,2.33179431]
[1737792753436,0.48533,3297.2,3296.7,2.33179431]
[1737792754335,0.48533,3297.2,3296.8,1.4868]
[1737792759736,0.48537,3296.9,3296.8,0.9952]
[1737792759930,0.48537,3296.9,3296.8,0.4831]
[1737792762538,0.48544,3296.5,3296.2,0.5047]
[1737792762733,9.24722244,3296.9,3296.2,0.5047]
[1737792762734,0.48545,3296.4,3296.2,0.9879]
[1737792762926,0.48545,3296.4,3296.2,3.9719]
[1737792765426,0.48538,3296.8,3296.3,0.48545]
[1737792765640,4.84502813,3296.9,3296.2,3.9719]
[1737792765641,0.48542,3296.6,3296.2,4.45737]
[1737792765833,0.48542,3296.6,3296.2,3.9719]
[1737792766027,0.48541,3296.7,3296.3,0.48546]
[1737792766233,0.48542,3296.6,3296.3,0.48546]
[1737792766436,4.84502813,3296.9,3296.3,0.48546]
[1737792766628,0.48541,3296.7,3296.3,0.48546]
[1737792768341,3.88102813,3296.9,3296.4,0.48544]
[1737792768342,0.48539,3296.8,3296.4,0.48544]
[1737792768540,0.48541,3296.7,3296.3,0.48545]
[1737792768732,0.48539,3296.8,3296.4,0.48543]
[1737792769626,0.48539,3296.8,3296.4,2.81722431]
[1737792770041,3.88102813,3296.9,3296.4,2.33179431]
[1737792770236,6.91542813,3296.9,3296.4,2.81723431]
[1737792770541,0.48539,3296.8,3296.4,2.81723431]
[1737792771037,4.36639813,3296.9,3296.4,2.33179431]
[1737792771339,4.36639813,3296.9,3296.5,0.48542]
[1737792771742,0.48537,3296.9,3296.5,0.48543]
[1737792771943,0.48538,3296.9,3296.4,2.33179431]
[1737792772240,0.48538,3296.9,3296.5,0.48542]
[1737792772831,3.2078,3298.9,3297.1,2.33179431]
[1737792773046,3.2078,3298.9,3298.7,2.33179431]
[1737792773337,3.2078,3298.9,3298.8,40.8]
[1737792776342,3.2078,3298.9,3298.7,2.33179431]
[1737792776534,0.48512,3298.6,3298.5,0.00455082]
[1737792776737,3.51952,3298.6,3298.5,0.00455082]
[1737792777044,3.0344,3298.6,3298.5,0.00455082]
[1737792777638,4.00642,3298.6,3298.5,0.00455082]
[1737792781747,1.2129,3298.4,3297.2,47.47712]
[1737792782047,3.0344,3297.5,3296.7,3.2078]
[1737792782249,0.48534,3297.2,3296.8,0.48538]
[1737792782446,0.48534,3297.2,3296.8,41.28538]
[1737792782647,0.4784,3297.4,3296.8,40.8]
[1737792782648,0.48535,3297.1,3296.8,40.8]
[1737792782950,0.00455082,3297.3,3296.8,40.8]
[1737792783249,0.48536,3297.0,3296.8,40.8]
[1737792783749,0.48537,3296.9,3296.8,40.8]
[1737792784249,0.48538,3296.8,3296.7,3.2078]
[1737792784446,3.87952278,3297.0,3296.7,3.2078]
[1737792784650,0.48538,3296.9,3296.7,44.0078]
[1737792785947,0.48538,3296.9,3296.7,3.2078]
[1737792786147,0.48538,3296.9,3296.7,5.53959431]
[1737792786351,0.48538,3296.9,3296.8,40.8]
[1737792787146,0.48536,3297.0,3296.8,40.8]
[1737792788154,1.01185,3297.1,3296.8,40.8]
[1737792788355,0.5265,3297.1,3296.8,40.8]
[1737792788555,4.51510998,3297.0,3296.8,40.8]
[1737792788762,4.02974998,3297.0,3296.8,40.8]
[1737792788948,0.48537,3296.9,3296.8,40.8]
[1737792790158,4.02974998,3297.0,3296.8,40.8]
[1737792790656,0.48537,3296.9,3296.8,40.8]
[1737792790850,0.48538,3296.8,3296.7,3.2078]
[1737792791253,4.02974998,3297.0,3296.7,3.2078]
[1737792791451,3.51978,3296.9,3296.7,3.2078]
[1737792791951,0.48538,3296.8,3296.7,3.2078]
[1737792792760,0.5265,3297.1,3296.7,3.2078]
[1737792792956,3.0344,3296.9,3296.7,3.2078]
[1737792793266,3.51977,3296.9,3296.7,3.2078]
[1737792794556,0.48538,3296.8,3296.7,3.2078]
[1737792799061,3.51978,3296.8,3296.7,3.2078]
[1737792803753,7.43415236,3296.8,3296.7,3.2078]
[1737792803964,0.4854,3296.7,3296.6,0.00455082]
[1737792804165,3.9986,3296.7,3296.6,0.00455082]
[1737792811163,4.9736,3296.7,3296.6,0.00455082]
[1737792818171,4.4882,3296.7,3296.6,0.00455082]
[1737792821774,3.0344,3296.7,3296.6,0.00455082]
[1737792824073,0.971,3296.9,3296.6,0.00455082]
[1737792824276,3.0344,3296.8,3296.6,0.00455082]
[1737792826380,3.51979,3296.8,3296.6,0.00455082]
[1737792827780,3.0344,3296.8,3296.6,0.00455082]
[1737792827981,0.4854,3296.7,3296.6,0.00455082]
[1737792828279,3.5198,3296.7,3296.6,0.00455082]
[1737792828577,4.0159,3296.7,3296.6,0.00455082]
[1737792828974,7.8718724,3296.7,3296.6,0.00455082]
[1737792835691,8.8388724,3296.7,3296.6,0.00455082]
[1737792835991,7.8718724,3296.7,3296.6,0.00455082]
[1737792836189,8.8378724,3296.7,3296.6,0.00455082]
[1737792837982,4.4858,3296.7,3296.6,0.00455082]
[1737792838186,3.0344,3296.7,3296.6,0.00455082]
[1737792838386,0.48538,3296.9,3296.6,3.69776082]
[1737792838684,3.51979,3296.8,3296.6,3.21235082]
[1737792839091,3.51979,3296.8,3296.7,40.8]
[1737792840284,3.0344,3296.8,3296.6,3.21235082]
[1737792840484,3.51979,3296.8,3296.6,3.21235082]
[1737792840683,3.0344,3296.8,3296.6,44.01235082]
[1737792841292,3.51979,3296.8,3296.6,44.01235082]
[1737792843192,3.0344,3296.8,3296.6,44.01235082]
[1737792843392,0.4854,3296.7,3296.6,44.01235082]
[1737792844600,0.4854,3296.7,3296.6,3.21235082]
[1737792847087,3.5198,3296.7,3296.6,3.21235082]
[1737792847994,0.966,3296.9,3296.6,3.21235082]
[1737792848184,3.0344,3296.8,3296.6,3.21235082]
[1737792848893,3.51979,3296.8,3296.6,3.21235082]
[1737792850186,3.0344,3296.8,3296.6,3.21235082]
[1737792850687,3.0344,3296.8,3296.7,2.33179431]
[1737792851492,3.51978,3296.8,3296.7,2.33179431]
[1737792852198,3.0344,3296.8,3296.7,2.33179431]
[1737792852697,3.51978,3296.8,3296.7,2.33179431]
[1737792856593,3.51978,3296.8,3296.7,5.31579431]
[1737792857693,3.51978,3296.8,3296.7,2.984]
[1737792862699,0.4854,3296.7,3296.6,3.21235082]
[1737792863001,3.5198,3296.7,3296.6,3.21235082]
[1737792863397,3.5198,3296.7,3296.6,0.00455082]
[1737792865696,3.5198,3296.7,3296.6,1.10932044]
[1737792866108,3.5198,3296.7,3296.6,1.46835677]
[1737792867203,3.5198,3296.7,3296.6,1.10932044]
[1737792867702,3.5198,3296.7,3296.6,1.46840766]
[1737792869008,3.5198,3296.7,3296.6,1.10932044]
[1737792870522,0.5147,3297.0,3296.6,1.470066]
[1737792870725,3.0344,3297.0,3296.9,1.10476962]
[1737792870921,3.0344,3297.0,3296.9,1.46542389]
[1737792871223,3.0344,3297.0,3296.9,1.92002552]
[1737792871425,1.44233,3297.2,3296.9,6.00869803]
[1737792871623,3.51973,3297.2,3297.1,1.10476962]
[1737792871921,3.0344,3297.2,3297.1,1.46542389]
[1737792872326,3.0344,3297.2,3297.1,1.10476962]
[1737792872816,3.51973,3297.2,3297.1,1.10476962]
[1737792873321,0.00455082,3297.3,3297.1,1.10476962]
[1737792873520,3.52427082,3297.3,3297.1,1.10476962]
[1737792874522,3.52427082,3297.3,3297.1,4.08876962]
[1737792874825,0.48533,3297.2,3297.1,4.08876962]
[1737792875024,3.52427082,3297.3,3297.1,4.08876962]
[1737792877624,3.03895082,3297.3,3297.1,4.08876962]
[1737792878230,3.52427082,3297.3,3297.1,4.08876962]
[1737792878732,3.03895082,3297.3,3297.1,4.08876962]
[1737792879028,3.52426082,3297.3,3297.1,4.08876962]
[1737792879230,3.45435765,3298.8,3297.2,6.89691621]
[1737792879423,8.71894251,3298.5,3298.4,4.79771962]
[1737792879619,7.13137375,3298.5,3298.4,8.48647632]
[1737792879824,7.13137375,3298.5,3298.4,49.28647632]
[1737792881025,0.00455002,3298.8,3298.4,48.80132632]
[1737792881231,0.00455002,3298.8,3298.7,1.10476962]
[1737792881732,0.00455002,3298.8,3298.7,2.33046897]
[1737792882320,0.00455002,3298.8,3298.7,2.81557897]
[1737792882524,0.00455002,3298.8,3298.7,2.33046897]
[1737792882719,0.00455002,3298.8,3298.7,2.81557897]
[1737792883024,0.00455002,3298.8,3298.7,2.33046897]
[1737792883427,0.00455002,3298.8,3298.7,2.81557897]
[1737792888839,0.976,3299.8,3299.5,0.48498]
[1737792889035,0.976,3299.8,3299.7,2.33046897]
[1737792896736,1.46094,3299.8,3299.7,2.33046897]
[1737792897942,0.976,3299.8,3299.7,2.33046897]
[1737792898142,1.46094,3299.8,3299.7,2.33046897]
[1737792898444,0.976,3299.8,3299.7,2.33046897]
[1737792898635,1.46094,3299.8,3299.7,2.33046897]
[1737792899042,0.976,3299.8,3299.7,2.33046897]
[1737792900946,1.46094,3299.8,3299.7,2.33046897]
[1737792901848,0.976,3299.8,3299.7,2.33046897]
[1737792903649,0.976,3299.8,3299.7,1.10275284]
[1737792905442,1.46094,3299.8,3299.7,1.10275284]
[1737792905951,1.46264298,3299.8,3299.7,1.10275284]
[1737792906349,0.97770298,3299.8,3299.7,1.10275284]
[1737792906754,1.46264298,3299.8,3299.7,1.10275284]
[1737792907644,0.97770298,3299.8,3299.7,1.10275284]
[1737792908853,1.46264298,3299.8,3299.7,1.10275284]
[1737792911547,1.46264298,3299.8,3299.7,1.10277964]
[1737792912555,0.485,3299.4,3299.1,4.31057964]
[1737792912848,0.48503,3299.2,3299.1,4.31057964]
[1737792913253,1.00763,3299.2,3299.1,4.31057964]
[1737792915256,1.00763,3299.2,3299.1,4.31110434]
[1737792918949,5.00147314,3299.2,3299.1,1.10330434]
[1737792919358,0.48509,3298.8,3298.7,45.11110434]
[1737792919653,0.48509,3298.8,3298.7,4.31110434]
[1737792919958,4.47893314,3298.8,3298.7,4.31110434]
[1737792921754,4.47893314,3298.8,3298.7,3.2078]
[1737792923952,0.975,3299.1,3298.7,5.53922426]
[1737792924155,1.46006,3299.1,3298.7,5.53922426]
[1737792924459,0.975,3299.1,3298.7,5.53922426]
[1737792924660,0.975,3299.1,3298.8,0.48509]
[1737792925049,0.975,3299.1,3298.7,5.53922426]
[1737792925253,0.975,3299.1,3298.8,0.48509]
[1737792925456,1.00764,3299.2,3298.8,0.48509]
[1737792925757,1.00764,3299.2,3298.7,6.02432426]
[1737792927051,0.48505,3299.1,3298.7,6.02432426]
[1737792927952,0.48505,3299.1,3298.7,5.53922426]
[1737792928458,0.48505,3299.1,3298.7,6.02432426]
[1737792928958,1.00764,3299.2,3298.7,6.02432426]
[1737792929551,1.00764,3299.2,3299.0,2.33142426]
[1737792930958,0.5226,3299.2,3299.0,2.33142426]
[1737792931159,0.48505,3299.1,3299.0,2.33142426]
[1737792931354,1.00764,3299.2,3299.0,2.33142426]
[1737792932161,0.5226,3299.2,3299.0,2.33142426]
[1737792932362,1.00353,3299.3,3299.0,2.33142426]
[1737792932666,0.48504,3299.2,3299.0,2.33142426]
[1737792933768,1.00353,3299.3,3299.0,2.33142426]
[1737792934760,0.48503,3299.2,3299.0,2.33142426]
[1737792935061,0.5185,3299.3,3299.0,2.33142426]
[1737792935368,3.69281,3299.4,3299.1,1.0186]
[1737792935559,3.69281,3299.4,3299.3,2.33142426]
[1737792935755,0.96078,3299.6,3299.3,2.33142426]
[1737792935956,0.4758,3299.6,3299.3,2.33142426]
[1737792936158,0.96078,3299.6,3299.3,2.33142426]
[1737792936955,0.96078,3299.6,3299.3,43.13142426]
[1737792937361,0.4758,3299.6,3299.3,43.13142426]
[1737792937757,0.48496,3299.7,3299.3,43.13142426]
[1737792937959,0.48496,3299.7,3299.4,0.0063]
[1737792938160,0.48496,3299.7,3299.6,2.33142426]
[1737792938360,1.0359,3300.0,3299.6,2.33142426]
[1737792938560,0.48666298,3299.8,3299.6,2.33142426]
[1737792938756,0.48496,3299.7,3299.6,2.33142426]
[1737792939065,0.00170298,3299.8,3299.6,2.33142426]
[1737792939264,0.48496,3299.7,3299.6,2.33142426]
[1737792939664,0.00170298,3299.8,3299.6,2.33142426]
[1737792939865,0.00170298,3299.8,3299.7,0.48496]
[1737792940066,0.00170298,3299.8,3299.7,1.48256]
[1737792940457,0.00170298,3299.8,3299.7,0.9976]
[1737792941367,0.00170298,3299.8,3299.5,3.2078]
[1737792941368,0.48497,3299.6,3299.5,3.2078]
[1737792941960,0.4752,3299.7,3299.1,3.2078]
[1737792942160,3.96820214,3299.6,3299.1,3.2078]
[1737792942360,0.48503,3299.3,3299.1,3.2078]
[1737792942567,3.96820214,3299.6,3299.1,3.2078]
[1737792942766,1.00943,3299.2,3299.1,3.2078]
[1737792949065,0.5244,3299.2,3299.1,3.2078]
[1737792950775,1.00943,3299.2,3299.1,3.2078]
[1737792950970,1.00943,3299.2,3299.0,5.31542426]
[1737792951277,0.5113,3299.1,3299.0,5.31542426]
[1737792952080,0.5113,3299.1,3299.0,5.80048426]
[1737792952473,0.5244,3299.2,3299.0,5.80048426]
[1737792952777,0.5244,3299.2,3299.1,3.2078]
[1737792953275,0.5102,3299.6,3299.1,3.69285]
[1737792953477,0.979,3299.5,3299.1,3.69285]
[1737792953878,0.494,3299.5,3299.1,3.2078]
[1737792954067,0.97899,3299.5,3299.1,3.69284]
[1737792954680,0.494,3299.5,3299.1,3.2078]
[1737792954876,0.485,3299.4,3299.1,3.2078]
[1737792955470,0.97899,3299.5,3299.1,3.2078]
[1737792955880,0.97899,3299.5,3299.1,3.69284]
[1737792956175,0.494,3299.5,3299.1,3.69284]
[1737792957680,0.494,3299.5,3299.2,0.48502]
[1737792959179,0.494,3299.5,3299.1,3.69284]
[1737792960683,0.494,3299.5,3299.1,6.67684]
[1737792960886,0.494,3299.5,3299.1,6.1918]
[1737792961277,0.97899,3299.5,3299.1,6.1918]
[1737792961688,0.485,3299.4,3299.1,6.1918]
[1737792965101,0.48503,3299.3,3299.1,6.1918]
[1737792965799,0.48503,3299.3,3299.2,1.10311095]
[1737792973711,4.494406,3299.3,3299.2,1.10311095]
[1737792977317,4.009376,3299.3,3299.0,1.10311095]
[1737792977501,0.48505,3299.1,3299.0,1.10311095]
[1737792983111,0.48646253,3299.1,3299.0,1.10311095]
[1737792987413,0.00141253,3299.1,3299.0,1.10311095]
[1737792988115,0.00141253,3299.1,3299.0,1.58817095]
[1737792988524,0.00141253,3299.1,3299.0,2.6912819]
[1737792989224,0.00141253,3299.1,3299.0,3.06029662]
[1737792989615,0.00141253,3299.1,3299.0,3.06027304]
[1737792991018,0.00141253,3299.1,3299.0,3.06025462]
[1737792992517,0.00141253,3299.1,3299.0,3.58175462]
[1737792992924,0.00141253,3299.1,3299.0,3.58176746]
[1737792993225,0.00141253,3299.1,3299.0,3.58176636]
[1737792994724,0.00141253,3299.1,3299.0,3.58181363]
[1737792995224,0.00141253,3299.1,3299.0,4.63062973]
[1737792995520,0.00141253,3299.1,3299.0,4.63056455]
[1737792996721,0.00141253,3299.1,3299.0,4.63046351]
[1737792997728,0.00141253,3299.1,3299.0,4.17218988]
[1737792997922,0.00141253,3299.1,3299.0,4.63045887]
[1737792998631,0.00141253,3299.1,3299.0,4.62987192]
[1737792998931,0.00141253,3299.1,3299.0,5.13317192]
[1737793000123,0.00141253,3299.1,3299.0,2.52020097]
[1737793000322,0.48646253,3299.1,3299.0,0.36880007]
[1737793000517,0.48646253,3299.1,3298.1,7.15513841]
[1737793000518,0.48511,3298.7,3298.6,1.10311095]
[1737793001429,0.48511,3298.7,3298.5,3.2078]
[1737793001430,0.48515,3298.4,3298.1,7.15513841]
[1737793001630,0.48518,3298.2,3298.1,7.15513841]
[1737793002131,0.48518,3298.2,3298.0,1.10311095]
[1737793002729,0.499,3298.3,3298.0,2.2062219]
[1737793003029,7.11394178,3298.4,3298.3,0.48516]
[1737793003030,3.90614178,3298.4,3298.3,0.48516]
[1737793003423,0.00455081,3298.4,3298.3,0.48516]
[1737793003928,0.00455081,3298.4,3298.3,0.85377197]
[1737793004328,0.00455081,3298.4,3298.3,0.48516]
[1737793004530,0.00455081,3298.4,3298.3,0.8537243]
[1737793004731,0.00455081,3298.4,3298.3,1.3507243]
[1737793004935,0.00455081,3298.4,3298.3,42.1507243]
[1737793005725,0.00455081,3298.4,3298.3,44.48161567]
[1737793006322,0.00455081,3298.4,3298.3,44.48153089]
[1737793007634,0.00455081,3298.4,3298.3,44.11305137]
[1737793007834,0.00455081,3298.4,3298.3,45.07097809]
[1737793008530,0.00455081,3298.4,3298.3,45.07095925]
[1737793009236,3.2078,3299.0,3298.3,49.58579925]
[1737793009533,0.00141253,3299.1,3298.9,2.81597137]
[1737793009739,0.00141253,3299.1,3299.0,0.5008]
[1737793009935,0.48646253,3299.1,3299.0,0.5008]
[1737793010135,0.48646253,3299.1,3299.0,41.3008]
[1737793010843,0.00141253,3299.1,3299.0,41.3008]
[1737793011834,0.00141253,3299.1,3299.0,40.8]
[1737793014836,0.00141253,3299.1,3299.0,41.16832367]
[1737793015533,0.00141253,3299.1,3299.0,40.8]
[1737793016047,0.00141253,3299.1,3299.0,41.16831936]
[1737793016241,0.00141253,3299.1,3299.0,40.8]
[1737793017244,0.00141253,3299.1,3298.7,2.984]
[1737793017543,0.48508,3298.9,3298.8,0.36836144]
[1737793017941,0.99,3299.0,3298.7,43.784]
[1737793018142,0.48509,3298.8,3298.7,43.784]
[1737793019237,0.48509,3298.8,3298.7,2.984]
[1737793021148,0.48508,3298.9,3298.7,2.984]
[1737793021545,0.48509,3298.8,3298.7,2.984]
[1737793021946,0.48509,3298.8,3298.7,3.35234792]
[1737793022345,4.99970762,3299.0,3298.7,2.984]
[1737793022544,0.99,3299.0,3298.9,2.33089137]
[1737793022747,1.47506,3299.0,3298.9,2.33089137]
[1737793023450,0.5087,3299.0,3298.9,2.81597137]
[1737793023650,0.00141253,3299.1,3298.9,2.33089137]
[1737793024252,0.00141253,3299.1,3299.0,0.3682522]
[1737793024452,0.00141253,3299.1,3298.9,2.33089137]
[1737793025052,0.00141253,3299.1,3298.9,2.81596137]
[1737793025255,0.00141253,3299.1,3298.9,2.33089137]
[1737793026158,0.00141253,3299.1,3299.0,0.48506]
[1737793027549,0.00141253,3299.1,3298.9,2.81596137]
[1737793028558,0.00141253,3299.1,3299.0,0.36835283]
[1737793028859,0.00141253,3299.1,3298.9,2.81596137]
[1737793030260,0.00141253,3299.1,3298.9,2.33089137]
[1737793031756,0.48646253,3299.1,3298.9,2.33089137]
[1737793031956,0.96216253,3299.1,3298.9,2.33089137]
[1737793032160,0.48506,3299.0,3298.9,2.33089137]
[1737793032360,0.96216253,3299.1,3298.9,2.69963993]
[1737793032560,0.47711253,3299.1,3298.9,2.33089137]
[1737793032766,0.48506,3299.0,3298.9,2.33089137]
[1737793032950,0.47711253,3299.1,3298.6,46.33869137]
[1737793033155,0.48509,3298.8,3298.7,0.36878986]
[1737793033463,0.48511,3298.7,3298.6,46.33869137]
[1737793033654,0.97451,3298.7,3298.6,46.70764359]
[1737793033856,0.97451,3298.7,3298.6,46.70764003]
[1737793035869,0.4894,3298.7,3298.6,46.7077316]
[1737793036061,0.4894,3298.7,3298.6,47.78325788]
[1737793036253,0.4894,3298.7,3298.6,47.2981947]
[1737793036458,0.4894,3298.7,3298.6,46.70773111]
[1737793036660,0.4894,3298.7,3298.6,47.29819412]
[1737793037159,0.4894,3298.7,3298.6,44.09039412]
[1737793037361,0.97451,3298.7,3298.6,46.70773111]
[1737793037862,0.97451,3298.7,3298.6,46.70778618]
[1737793038763,0.47711253,3299.1,3298.6,46.70778618]
[1737793038959,0.98507,3299.0,3298.7,0.85419481]
[1737793039265,0.98507,3299.0,3298.8,0.36909481]
[1737793039461,0.98507,3299.0,3298.7,0.4851]
[1737793039661,0.98507,3299.0,3298.8,0.36905299]
[1737793039860,0.5,3299.0,3298.6,46.33869137]
[1737793040061,0.48508,3298.9,3298.7,0.36907395]
[1737793040261,0.5,3299.0,3298.6,46.33869137]
[1737793040463,0.00141253,3299.1,3298.9,2.81595137]
[1737793040661,0.00141253,3299.1,3299.0,0.48506]
[1737793040868,0.00141253,3299.1,3299.0,0.97046]
[1737793041766,0.00141253,3299.1,3299.0,1.45866]
[1737793042160,0.00141253,3299.1,3299.0,0.4854]
[1737793042755,0.48503,3299.3,3299.0,0.4854]
[1737793043054,9.8248929,3301.3,3301.2,0.48474]
[1737793043264,9.8248929,3301.3,3301.2,43.13089137]
[1737793043658,9.8248929,3301.3,3301.2,43.49870011]
[1737793044163,9.8248929,3301.3,3301.2,40.8]
[1737793044464,9.8248929,3301.3,3301.0,3.2078]
[1737793044667,0.5071,3301.2,3301.0,3.2078]
[1737793046170,3.94822429,3301.1,3301.0,3.2078]
[1737793046360,4.43297429,3301.1,3300.9,2.3354351]
[1737793046675,3.94822429,3301.1,3300.9,2.3354351]
[1737793049966,3.2078,3302.5,3301.0,6.5368]
[1737793050161,0.486,3302.4,3301.9,2.33089137]
[1737793050366,0.48458,3302.3,3301.7,3.2078]
[1737793050768,3.85783697,3302.2,3302.1,6.02330137]
[1737793050970,3.85783697,3302.2,3302.1,44.49241]
[1737793051378,0.486,3302.9,3302.1,44.49241]
[1737793051675,0.48451,3302.8,3302.4,2.33089137]
[1737793051876,0.48451,3302.8,3302.1,46.33869137]
[1737793052077,0.486,3302.9,3302.1,46.33869137]
[1737793052271,0.48456,3302.5,3302.1,46.33869137]
[1737793052773,3.91570029,3302.4,3302.1,46.33869137]
[1737793052975,3.91570029,3302.4,3302.1,5.53869137]
[1737793053377,4.40026029,3302.4,3302.1,5.53869137]
[1737793053873,3.91570029,3302.4,3302.1,5.53869137]
[1737793054175,4.40027029,3302.4,3302.1,5.53869137]
[1737793054975,0.48455,3302.5,3302.1,5.53869137]
[1737793055771,0.48454,3302.6,3302.4,2.33089137]
[1737793056167,0.48455,3302.5,3302.4,2.33089137]
[1737793056373,0.48454,3302.6,3302.4,2.33089137]
[1737793056573,0.48453,3302.6,3302.4,2.33089137]
[1737793056776,0.48455,3302.5,3302.4,2.33089137]
[1737793058370,4.017857,3302.6,3302.1,3.2078]
[1737793058371,4.017857,3302.6,3302.1,5.53869137]
[1737793058775,0.48457,3302.4,3302.1,5.53869137]
[1737793059673,4.017857,3302.6,3302.1,5.53869137]
[1737793059873,0.48458,3302.3,3302.1,5.53869137]
[1737793060272,4.017857,3302.6,3302.1,5.53869137]
[1737793060481,0.48459,3302.2,3302.1,5.53869137]
[1737793065375,4.42678187,3302.2,3302.1,5.53869137]
[1737793067983,0.48464,3301.9,3301.8,2.33089137]
[1737793072179,3.94219187,3302.2,3301.8,2.33089137]
[1737793072384,0.48459,3302.2,3302.1,2.33089137]
[1737793072885,0.5051,3302.8,3302.1,5.53869137]
[1737793073085,0.48455,3302.5,3302.4,2.33089137]
[1737793073391,3.86149702,3302.7,3302.4,5.53869137]
[1737793073690,0.48455,3302.5,3302.4,5.53869137]
[1737793079192,0.48449,3302.9,3302.4,6.02324137]
[1737793079390,0.48449,3303.0,3302.8,2.33089137]
[1737793079897,4.2278,3303.3,3302.8,43.13089137]
[1737793080096,0.48449,3302.9,3302.8,2.33089137]
[1737793080797,4.43410016,3302.9,3302.8,2.33089137]
[1737793081193,0.48452,3302.7,3302.6,0.00454373]
[1737793082491,4.50822408,3302.7,3302.6,0.00454373]
[1737793094599,5.52222408,3302.7,3302.6,0.00454373]
[1737793096005,4.02370408,3302.7,3302.6,0.00454373]
[1737793097102,4.02370408,3302.7,3302.6,40.80454373]
[1737793097605,4.50822408,3302.7,3302.6,40.80454373]
[1737793098202,4.02370408,3302.7,3302.6,40.80454373]
[1737793100611,3.2078,3302.9,3302.6,40.80454373]
[1737793101005,3.2078,3302.9,3302.8,2.33089137]
[1737793102612,0.48448,3303.0,3302.8,2.33089137]
[1737793102811,1.01115,3303.2,3302.9,0.511]
[1737793103513,1.01115,3303.2,3303.0,40.8]
[1737793103910,3.2078,3303.3,3303.0,40.8]
[1737793104106,0.5017,3303.5,3303.1,2.33089137]
[1737793104411,0.4844,3303.6,3303.4,2.33089137]
[1737793105322,4.38326138,3303.5,3303.4,2.33089137]
[1737793105819,0.48444,3303.3,3303.1,2.33089137]
[1737793106413,3.90927616,3303.7,3303.1,2.33089137]
[1737793106810,0.48443,3303.3,3303.1,2.33089137]
[1737793107410,0.48442,3303.4,3303.1,2.33089137]
[1737793107717,0.48442,3303.4,3303.3,2.33089137]
[1737793109622,0.48446,3303.1,3303.0,2.33089137]
[1737793112219,1.00414,3303.3,3303.0,2.33089137]